[Event "Belt and Road Women 2024"]
[Site "Yuecheng Shaoxing"]
[Date "2024.08.01"]
[Round "8.12"]
[White "Gu, Xiaobing"]
[Black "Wang, Qinxuanyi"]
[Result "0-1"]
[ECO "B30"]
[WhiteElo "2135"]
[BlackElo "2149"]
[Annotator "RC"]
[PlyCount "112"]
[EventDate "2024.08.01"]
[EventType "swiss"]
[EventCountry "CHN"]
[SourceTitle "playchess.com"]
[Source "ChessBase"]
[SourceQuality "1"]
[TimeControl "5400+30"]

1. e4 {[%emt 0:00:36]} c5 {[%emt 0:00:06]} 2. Nf3 {[%emt 0:00:44]} Nc6 {[%emt 0:00:06]} 3. Bb5 {[%emt 0:00:04]} e6 {[%emt 0:00:05]} 4. Bxc6 {[%emt 0:01:19]} bxc6 {[%emt 0:00:05]} 5. d3 {[%emt 0:00:12]} Qc7 {[%emt 0:00:07]} 6. O-O {[%emt 0:01:59]} Ne7 {[%emt 0:00:27]} 7. Qe2 {[%emt 0:07:57]} Ng6 {[%emt 0:05:03]} 8. h4 {[%emt 0:00:27]} Be7 {[%emt 0:02:09]} 9. g3 {[%emt 0:01:36]} e5 {[%emt 0:03:28]} 10. h5 {[%emt 0:06:45]} Nf8 {[%emt 0:00:04]} 11. c3 {[%emt 0:10:06]} Ne6 {[%emt 0:01:47]} 12. Na3 {[%emt 0:01:35]} d6 {[%emt 0:12:03]} 13. Nc2 {[%emt 0:08:18]} O-O {[%emt 0:01:05]} 14. Ne3 {[%emt 0:03:41]} Ng5 {[%emt 0:01:14]} 15. Nxg5 {[%emt 0:03:02]} Bxg5 {[%emt 0:00:06]} 16. f4 {[%emt 0:00:39]} exf4 {[%emt 0:08:50]} 17. gxf4 {[%emt 0:00:17]} Bh6 {[%emt 0:00:26]} 18. f5 {[%emt 0:02:29]} d5 {[%emt 0:09:11]} 19. Qg2 {[%emt 0:03:51]} Kh8 {[%emt 0:09:27]} 20. exd5 {[%emt 0:09:44]} Bd7 {[%emt 0:03:23]} 21. Rf3 {[%emt 0:06:39]} cxd5 {[%emt 0:05:33]} 22. Nxd5 {[%emt 0:02:24]} Qd6 {[%emt 0:00:46]} 23. c4 {[%emt 0:08:36]} Bxc1 {[%emt 0:03:24]} 24. Rxc1 {[%emt 0:00:05]} Qh6 {[%emt 0:00:30]} 25. Rcf1 {[%emt 0:01:45]} f6 {[%emt 0:06:12]} 26. Ne7 {[%emt 0:01:09]} Rae8 {[%emt 0:03:50]} 27. Re1 {[%emt 0:03:23]} Bc6 {[%emt 0:03:59]} 28. Re2 {[%emt 0:00:12]} Bxf3 {[%emt 0:01:10]} 29. Qxf3 {[%emt 0:00:01]} Rd8 {[%emt 0:03:06]} 30. Qe3 {[%emt 0:01:50]} Qg5+ {[%emt 0:02:13]} 31. Qxg5 {[%emt 0:01:10]} fxg5 {[%emt 0:00:04]} 32. Re3 {[%emt 0:01:46]} Rd6 {[%emt 0:02:26]} 33. Kg2 {[%emt 0:01:06]} Ra6 {[%emt 0:00:58]} 34. a3 {[%emt 0:00:17]} Rb6 {[%emt 0:05:07]} 35. b4 {[%emt 0:00:10]} cxb4 {[%emt 0:00:02]} 36. c5 {[%emt 0:01:39]} Rb5 {[%emt 0:00:28]} 37. axb4 {[%emt 0:00:07]} a5 {[%emt 0:00:34]} 38. bxa5 {[%emt 0:02:53]} Rxc5 {[%emt 0:00:03]} 39. d4 {[%emt 0:00:34]} Rxa5 {[%emt 0:00:13]} 40. d5 {[%emt 0:00:02]} Ra4 {[%emt 0:02:06]} 41. Rd3 {[%emt 0:00:28]} Ra7 {[%emt 0:01:52]} 42. Re3 {[%emt 0:01:51]} Ra4 {[%emt 0:02:01]} 43. Rd3 {[%emt 0:00:02]} Rd8 {[%emt 0:00:46]} 44. Rb3 {[%emt 0:05:03]} Raa8 {[%emt 0:01:23]} 45. Kf3 {[%emt 0:00:10]} Rd7 {[%emt 0:00:24]} 46. Re3 {[%emt 0:00:20]} h6 {[%emt 0:00:46]} 47. Re6 {[%emt 0:00:32]} Kh7 {[%emt 0:00:27]} 48. Ke4 {[%emt 0:00:41]} g4 {[%emt 0:01:10]} 49. Kf4 {[%emt 0:00:26]} Ra4+ {[%emt 0:00:06]} 50. Kg3 {[%emt 0:00:04]} Rb7 {[%emt 0:00:14]} 51. Re3 {[%emt 0:00:39]} Rd4 {[%emt 0:00:50]} 52. Ng6 {[%emt 0:00:06]} Rb8 {[%emt 0:00:27]} 53. Nf4 {[%emt 0:03:21]} Rc8 {[%emt 0:02:49]} 54. Ra3 {[%emt 0:00:35]} Kg8 {[%emt 0:00:04]} 55. Ng6 {[%emt 0:01:47]} Kf7 {[%emt 0:00:25]} 56. Ra7+ {[%emt 0:00:19]} Kf6 {[%emt 0:00:13]} 0-1

[Event "Belt and Road Women 2024"]
[Site "Yuecheng Shaoxing"]
[Date "2024.08.01"]
[Round "8.14"]
[White "Bai, Xue"]
[Black "Li, Xueyi"]
[Result "0-1"]
[ECO "B12"]
[WhiteElo "2114"]
[BlackElo "2209"]
[Annotator "RC"]
[PlyCount "96"]
[EventDate "2024.08.01"]
[EventType "swiss"]
[EventCountry "CHN"]
[SourceTitle "playchess.com"]
[Source "ChessBase"]
[SourceQuality "1"]
[TimeControl "5400+30"]

1. e4 {[%emt 0:00:03]} c6 {[%emt 0:00:02]} 2. d4 {[%emt 0:00:04]} d5 {[%emt 0:00:04]} 3. e5 {[%emt 0:00:09]} Bf5 {[%emt 0:00:07]} 4. Nd2 {[%emt 0:00:07]} e6 {[%emt 0:00:39]} 5. Nb3 {[%emt 0:00:06]} Nd7 {[%emt 0:00:41]} 6. Nf3 {[%emt 0:00:10]} Ne7 {[%emt 0:00:45]} 7. Be2 {[%emt 0:06:43]} h6 {[%emt 0:01:28]} 8. Be3 {[%emt 0:03:04]} Bh7 {[%emt 0:00:15]} 9. O-O {[%emt 0:04:11]} Nf5 {[%emt 0:00:05]} 10. c4 {[%emt 0:02:09]} dxc4 {[%emt 0:00:24]} 11. Bxc4 {[%emt 0:00:10]} Be7 {[%emt 0:02:00]} 12. Qe2 {[%emt 0:03:36]} O-O {[%emt 0:02:09]} 13. Bd2 {[%emt 0:04:29]} Bg6 {[%emt 0:03:24]} 14. h3 {[%emt 0:00:58]} Nb6 {[%emt 0:13:40]} 15. Bd3 {[%emt 0:00:59]} c5 {[%emt 0:04:18]} 16. Rfd1 {[%emt 0:04:46]} Nxd4 {[%emt 0:07:01]} 17. Nbxd4 {[%emt 0:00:45]} Bxd3 {[%emt 0:00:09]} 18. Qxd3 {[%emt 0:00:07]} cxd4 {[%emt 0:00:04]} 19. Qe4 {[%emt 0:02:40]} Nd5 {[%emt 0:06:45]} 20. Qg4 {[%emt 0:00:46]} Kh8 {[%emt 0:02:34]} 21. Qh5 {[%emt 0:02:58]} Kh7 {[%emt 0:00:50]} 22. Bc1 {[%emt 0:03:01]} f5 {[%emt 0:08:18]} 23. Nxd4 {[%emt 0:03:52]} Qd7 {[%emt 0:02:00]} 24. Rd3 {[%emt 0:03:08]} Bc5 {[%emt 0:01:24]} 25. Nf3 {[%emt 0:03:45]} Qe8 {[%emt 0:03:55]} 26. Ng5+ {[%emt 0:07:01]} Kg8 {[%emt 0:01:22]} 27. Qxe8 {[%emt 0:00:06]} Rfxe8 {[%emt 0:00:21]} 28. Nf3 {[%emt 0:11:31]} Nb4 {[%emt 0:03:52]} 29. Rc3 {[%emt 0:00:12]} Bb6 {[%emt 0:02:02]} 30. Rb3 {[%emt 0:04:22]} Nc6 {[%emt 0:20:37]} 31. Be3 {[%emt 0:01:59]} Bxe3 {[%emt 0:00:27]} 32. Rxe3 {[%emt 0:00:38]} Rad8 {[%emt 0:00:05]} 33. Rc1 {[%emt 0:04:28]} Rd5 {[%emt 0:00:33]} 34. Rc4 {[%emt 0:03:01]} Red8 {[%emt 0:00:46]} 35. g4 {[%emt 0:00:43]} fxg4 {[%emt 0:00:41]} 36. Rxg4 {[%emt 0:00:32]} Ne7 {[%emt 0:02:55]} 37. Ra3 {[%emt 0:00:55]} a6 {[%emt 0:00:41]} 38. Rb3 {[%emt 0:00:15]} b5 {[%emt 0:01:03]} 39. a4 {[%emt 0:00:11]} Rf8 {[%emt 0:02:43]} 40. axb5 {[%emt 0:00:41]} axb5 {[%emt 0:00:01]} 41. Re4 {[%emt 0:02:50]} Ng6 {[%emt 0:01:14]} 42. Nd4 {[%emt 0:01:48]} Nxe5 {[%emt 0:00:48]} 43. Rxb5 {[%emt 0:00:40]} Nf3+ {[%emt 0:00:18]} 44. Nxf3 {[%emt 0:00:44]} Rxb5 {[%emt 0:00:10]} 45. Kg2 {[%emt 0:00:53]} Rb3 {[%emt 0:00:22]} 46. Nd4 {[%emt 0:02:16]} Rxb2 {[%emt 0:00:19]} 47. Nxe6 {[%emt 0:00:37]} Rfxf2+ {[%emt 0:00:27]} 48. Kg3 {[%emt 0:00:13]} Rfe2 {[%emt 0:00:33]} 0-1

[Event "Belt and Road Women 2024"]
[Site "Yuecheng Shaoxing"]
[Date "2024.08.01"]
[Round "8.15"]
[White "Wang, Chuqiao"]
[Black "Soumya, Swaminathan"]
[Result "1/2-1/2"]
[ECO "E60"]
[WhiteElo "2278"]
[BlackElo "2258"]
[Annotator "RC"]
[PlyCount "204"]
[EventDate "2024.08.01"]
[EventType "swiss"]
[EventCountry "CHN"]
[SourceTitle "playchess.com"]
[Source "ChessBase"]
[SourceQuality "1"]
[TimeControl "5400+30"]

1. d4 {[%emt 0:00:03]} Nf6 {[%emt 0:00:03]} 2. c4 {[%emt 0:00:08]} g6 {[%emt 0:00:03]} 3. g3 {[%emt 0:00:06]} Bg7 {[%emt 0:00:04]} 4. Bg2 {[%emt 0:00:04]} O-O {[%emt 0:00:17]} 5. Nf3 {[%emt 0:00:05]} d6 {[%emt 0:02:05]} 6. O-O {[%emt 0:00:32]} c5 {[%emt 0:00:05]} 7. Nc3 {[%emt 0:03:13]} Nc6 {[%emt 0:00:09]} 8. e3 {[%emt 0:02:57]} cxd4 {[%emt 0:11:15]} 9. Nxd4 {[%emt 0:01:52]} Bd7 {[%emt 0:00:21]} 10. b3 {[%emt 0:01:49]} Rb8 {[%emt 0:06:13]} 11. Bb2 {[%emt 0:01:31]} a6 {[%emt 0:00:03]} 12. Rc1 {[%emt 0:04:19]} Ne8 {[%emt 0:07:14]} 13. Re1 {[%emt 0:04:43]} Rc8 {[%emt 0:08:40]} 14. Qd2 {[%emt 0:08:05]} Nc7 {[%emt 0:06:23]} 15. Red1 {[%emt 0:12:45]} Ne6 {[%emt 0:02:14]} 16. Nxc6 {[%emt 0:03:02]} bxc6 {[%emt 0:07:33]} 17. Na4 {[%emt 0:03:05]} Bxb2 {[%emt 0:05:42]} 18. Qxb2 {[%emt 0:00:14]} c5 {[%emt 0:00:14]} 19. Nc3 {[%emt 0:00:47]} Rb8 {[%emt 0:04:46]} 20. h4 {[%emt 0:01:54]} Ng7 {[%emt 0:03:37]} 21. Nd5 {[%emt 0:05:16]} h5 {[%emt 0:03:59]} 22. Rd3 {[%emt 0:03:18]} Re8 {[%emt 0:01:33]} 23. Rcd1 {[%emt 0:00:46]} Qc8 {[%emt 0:00:41]} 24. e4 {[%emt 0:01:05]} Bg4 {[%emt 0:02:45]} 25. R1d2 {[%emt 0:00:50]} f6 {[%emt 0:11:23]} 26. f4 {[%emt 0:02:31]} Be6 {[%emt 0:05:58]} 27. e5 {[%emt 0:01:20]} fxe5 {[%emt 0:03:14]} 28. fxe5 {[%emt 0:00:16]} Bxd5 {[%emt 0:00:09]} 29. Bxd5+ {[%emt 0:03:15]} Kh7 {[%emt 0:00:08]} 30. Bf7 {[%emt 0:02:37]} Rf8 {[%emt 0:00:22]} 31. Rf2 {[%emt 0:00:28]} Nf5 {[%emt 0:04:37]} 32. e6 {[%emt 0:00:56]} Rxf7 {[%emt 0:00:34]} 33. exf7 {[%emt 0:00:07]} Qe6 {[%emt 0:00:07]} 34. Qe2 {[%emt 0:05:10]} Qxe2 {[%emt 0:00:31]} 35. Rxe2 {[%emt 0:00:11]} Kg7 {[%emt 0:00:07]} 36. a3 {[%emt 0:02:10]} a5 {[%emt 0:00:22]} 37. Kg2 {[%emt 0:03:00]} Kxf7 {[%emt 0:00:08]} 38. Rb2 {[%emt 0:00:06]} Kf6 {[%emt 0:01:13]} 39. Kf3 {[%emt 0:02:22]} Ke6 {[%emt 0:03:33]} 40. Ke4 {[%emt 0:02:21]} Rb6 {[%emt 0:00:36]} 41. Kf4 {[%emt 0:02:07]} Kf6 {[%emt 0:00:13]} 42. Kf3 {[%emt 0:01:14]} Rb8 {[%emt 0:00:55]} 43. Kf2 {[%emt 0:00:24]} Rb6 {[%emt 0:00:10]} 44. b4 {[%emt 0:00:22]} axb4 {[%emt 0:00:11]} 45. axb4 {[%emt 0:00:04]} cxb4 {[%emt 0:00:13]} 46. Rdb3 {[%emt 0:00:06]} Rc6 {[%emt 0:01:18]} 47. Rxb4 {[%emt 0:00:05]} Rc5 {[%emt 0:00:21]} 48. Rd2 {[%emt 0:01:23]} e6 {[%emt 0:00:57]} 49. Kf3 {[%emt 0:01:02]} Rc7 {[%emt 0:00:32]} 50. Ra2 {[%emt 0:00:40]} Rc8 {[%emt 0:00:24]} 51. Kf2 {[%emt 0:02:11]} Nd4 {[%emt 0:00:25]} 52. Ra3 {[%emt 0:06:42]} Ke5 {[%emt 0:00:52]} 53. Re3+ {[%emt 0:00:22]} Kf6 {[%emt 0:00:16]} 54. Rc3 {[%emt 0:00:25]} Rc6 {[%emt 0:01:07]} 55. c5 {[%emt 0:03:00]} Nf5 {[%emt 0:00:27]} 56. Rb6 {[%emt 0:02:32]} Rxc5 {[%emt 0:00:36]} 57. Rxc5 {[%emt 0:00:05]} dxc5 {[%emt 0:00:03]} 58. Rc6 {[%emt 0:00:06]} g5 {[%emt 0:00:20]} 59. hxg5+ {[%emt 0:01:19]} Kxg5 {[%emt 0:00:02]} 60. Rxe6 {[%emt 0:00:31]} h4 {[%emt 0:00:12]} 61. gxh4+ {[%emt 0:00:15]} Nxh4 {[%emt 0:00:04]} 62. Re5+ {[%emt 0:00:07]} Kf4 {[%emt 0:00:10]} 63. Rxc5 {[%emt 0:00:07]} Nf5 {[%emt 0:00:04]} 64. Ke2 {[%emt 0:00:07]} Ke4 {[%emt 0:00:13]} 65. Rc4+ {[%emt 0:00:07]} Nd4+ {[%emt 0:00:28]} 66. Kd2 {[%emt 0:00:03]} Ke5 {[%emt 0:00:30]} 67. Kd3 {[%emt 0:00:05]} Ne6 {[%emt 0:00:06]} 68. Rh4 {[%emt 0:00:17]} Nf4+ {[%emt 0:00:16]} 69. Kc4 {[%emt 0:00:26]} Ke4 {[%emt 0:00:09]} 70. Rh8 {[%emt 0:00:07]} Ke5 {[%emt 0:00:40]} 71. Ra8 {[%emt 0:01:08]} Ne6 {[%emt 0:00:37]} 72. Ra1 {[%emt 0:00:12]} Kd6 {[%emt 0:00:57]} 73. Ra5 {[%emt 0:00:17]} Nf4 {[%emt 0:00:40]} 74. Rf5 {[%emt 0:00:07]} Ne6 {[%emt 0:00:08]} 75. Kd3 {[%emt 0:00:25]} Kc6 {[%emt 0:01:54]} 76. Ke4 {[%emt 0:00:16]} Nc5+ {[%emt 0:00:16]} 77. Ke5 {[%emt 0:00:12]} Nd7+ {[%emt 0:00:08]} 78. Kd4 {[%emt 0:00:13]} Kd6 {[%emt 0:00:15]} 79. Rf1 {[%emt 0:01:22]} Ke6 {[%emt 0:00:19]} 80. Ra1 {[%emt 0:00:12]} Kf5 {[%emt 0:00:51]} 81. Ra5+ {[%emt 0:01:15]} Ke6 {[%emt 0:01:17]} 82. Rh5 {[%emt 0:00:16]} Nf6 {[%emt 0:00:13]} 83. Re5+ {[%emt 0:00:14]} Kd6 {[%emt 0:00:03]} 84. Re1 {[%emt 0:00:55]} Nd7 {[%emt 0:00:12]} 85. Ke4 {[%emt 0:00:21]} Nc5+ {[%emt 0:00:56]} 86. Kf5 {[%emt 0:00:06]} Kd5 {[%emt 0:00:07]} 87. Rd1+ {[%emt 0:00:17]} Kc4 {[%emt 0:00:04]} 88. Kf4 {[%emt 0:00:25]} Kc3 {[%emt 0:01:04]} 89. Ke5 {[%emt 0:00:13]} Nd3+ {[%emt 0:00:18]} 90. Kd5 {[%emt 0:00:06]} Kc2 {[%emt 0:01:50]} 91. Rh1 {[%emt 0:00:15]} Kc3 {[%emt 0:00:26]} 92. Rh3 {[%emt 0:00:15]} Kd2 {[%emt 0:00:18]} 93. Kd4 {[%emt 0:00:06]} Nf2 {[%emt 0:00:24]} 94. Re3 {[%emt 0:00:18]} Ng4 {[%emt 0:00:41]} 95. Ra3 {[%emt 0:00:36]} Ke2 {[%emt 0:00:09]} 96. Rg3 {[%emt 0:00:18]} Nf2 {[%emt 0:00:15]} 97. Rg8 {[%emt 0:00:33]} Kf3 {[%emt 0:00:42]} 98. Rf8+ {[%emt 0:00:06]} Kg3 {[%emt 0:00:29]} 99. Rf7 {[%emt 0:00:58]} Ng4 {[%emt 0:00:13]} 100. Rf5 {[%emt 0:00:30]} Nf2 {[%emt 0:00:27]} 101. Ke3 {[%emt 0:00:12]} Ng4+ {[%emt 0:00:02]} 102. Ke2 {[%emt 0:00:02]} Nh6 {[%emt 0:00:52]} 1/2-1/2

[Event "Belt and Road Women 2024"]
[Site "Yuecheng Shaoxing"]
[Date "2024.08.01"]
[Round "8.16"]
[White "Velikic, Adela"]
[Black "Hu, Jiani"]
[Result "1-0"]
[ECO "B42"]
[WhiteElo "2290"]
[BlackElo "2148"]
[Annotator "RC"]
[PlyCount "84"]
[EventDate "2024.08.01"]
[EventType "swiss"]
[EventCountry "CHN"]
[SourceTitle "playchess.com"]
[Source "ChessBase"]
[SourceQuality "1"]
[TimeControl "5400+30"]

1. e4 {[%emt 0:00:03]} c5 {[%emt 0:00:04]} 2. Nf3 {[%emt 0:00:05]} e6 {[%emt 0:00:09]} 3. d4 {[%emt 0:00:05]} cxd4 {[%emt 0:00:07]} 4. Nxd4 {[%emt 0:00:05]} a6 {[%emt 0:00:04]} 5. Bd3 {[%emt 0:00:07]} Qc7 {[%emt 0:00:23]} 6. O-O {[%emt 0:00:33]} Nf6 {[%emt 0:00:07]} 7. Qe2 {[%emt 0:00:38]} d6 {[%emt 0:00:41]} 8. c4 {[%emt 0:00:26]} Be7 {[%emt 0:00:21]} 9. Nc3 {[%emt 0:00:21]} O-O {[%emt 0:00:20]} 10. f4 {[%emt 0:03:14]} e5 {[%emt 0:00:58]} 11. Nf5 {[%emt 0:00:45]} Bxf5 {[%emt 0:09:14]} 12. exf5 {[%emt 0:00:09]} Nc6 {[%emt 0:03:32]} 13. g4 {[%emt 0:01:04]} Nd4 {[%emt 0:11:58]} 14. Qg2 {[%emt 0:00:45]} Qc6 {[%emt 0:04:04]} 15. g5 {[%emt 0:47:35]} Qxg2+ {[%emt 0:05:39]} 16. Kxg2 {[%emt 0:00:06]} Nd7 {[%emt 0:00:53]} 17. Nd5 {[%emt 0:00:00]} Bd8 {[%emt 0:00:40]} 18. Be3 {[%emt 0:02:08]} Nb6 {[%emt 0:08:02]} 19. Nc3 {[%emt 0:10:02]} Nc6 {[%emt 0:27:28]} 20. b3 {[%emt 0:04:44]} Re8 {[%emt 0:02:44]} 21. Rad1 {[%emt 0:08:10]} Bc7 {[%emt 0:02:51]} 22. Be4 {[%emt 0:03:19]} Rad8 {[%emt 0:01:03]} 23. f6 {[%emt 0:07:25]} Nd7 {[%emt 0:05:21]} 24. fxg7 {[%emt 0:05:12]} Kxg7 {[%emt 0:01:45]} 25. f5 {[%emt 0:00:51]} f6 {[%emt 0:06:01]} 26. Nd5 {[%emt 0:01:20]} Bb8 {[%emt 0:00:17]} 27. h4 {[%emt 0:01:10]} Rc8 {[%emt 0:07:46]} 28. Nxf6 {[%emt 0:02:22]} Nxf6 {[%emt 0:00:12]} 29. gxf6+ {[%emt 0:00:01]} Kh8 {[%emt 0:01:36]} 30. Bh6 {[%emt 0:00:54]} Rg8+ {[%emt 0:00:38]} 31. Bg7+ {[%emt 0:00:43]} Rxg7+ {[%emt 0:00:14]} 32. fxg7+ {[%emt 0:00:02]} Kxg7 {[%emt 0:00:13]} 33. f6+ {[%emt 0:00:09]} Kf7 {[%emt 0:00:30]} 34. Bd5+ {[%emt 0:00:23]} Kf8 {[%emt 0:00:30]} 35. Kh3 {[%emt 0:00:32]} Ba7 {[%emt 0:00:49]} 36. Rg1 {[%emt 0:01:28]} Bxg1 {[%emt 0:00:37]} 37. Rxg1 {[%emt 0:00:03]} Ne7 {[%emt 0:00:29]} 38. fxe7+ {[%emt 0:00:15]} Kxe7 {[%emt 0:00:07]} 39. Rg7+ {[%emt 0:00:07]} Kf6 {[%emt 0:02:09]} 40. Rxh7 {[%emt 0:01:36]} b5 {[%emt 0:00:00]} 41. Rd7 {[%emt 0:00:22]} Kg6 {[%emt 0:00:00]} 42. Be4+ {[%emt 0:00:32]} Kf6 {[%emt 0:00:00]} 1-0

[Event "Belt and Road Women 2024"]
[Site "Yuecheng Shaoxing"]
[Date "2024.08.02"]
[Round "9.1"]
[White "Tan, Zhongyi"]
[Black "Shuvalova, Polina"]
[Result "1-0"]
[ECO "D00"]
[WhiteElo "2540"]
[BlackElo "2467"]
[Annotator "TA"]
[PlyCount "79"]
[EventDate "2024.08.01"]
[EventType "swiss"]
[EventCountry "CHN"]
[SourceTitle "playchess.com"]
[Source "ChessBase"]
[SourceQuality "1"]
[TimeControl "5400+30"]

{[%evp 9,79,0,9,9,21,31,28,25,28,0,81,72,132,120,120,123,120,147,127,125,143,137,142,133,128,129,135,136,117,107,195,195,175,97,102,107,110,105,110,104,185,178,191,203,235,213,232,208,247,230,207,200,293,278,350,350,341,299,440,437,429,430,603,563,606,595,650,657,660,661,654,633]} 1. d4 {[%emt 0:00:04]} Nf6 {[%emt 0:00:07]} 2. Nc3 {[%emt 0:00:05]} d5 {[%emt 0:00:06]} 3. Bf4 {[%emt 0:00:06]} a6 {[%emt 0:00:57]} 4. e3 {[%emt 0:00:09]} h6 {[%emt 0:01:35]} 5. h4 {[%emt 0:06:04]} e6 {[%emt 0:02:48]} 6. g4 {[%emt 0:00:47]} Bb4 {[%emt 0:00:44]} 7. Bg2 {[%emt 0:00:55]} g6 {[%emt 0:13:39]} 8. Qf3 {[%emt 0:08:53] White has an edge.} Nxg4 {[%emt 0:04:45]} 9. Nge2 {[%emt 0:04:32][%cal Of3g3]} h5 {[%emt 0:11:23]} (9... Nf6 $11 {keeps the balance.}) 10. O-O-O $16 {[%emt 0:00:53][%mdl 1024] White has strong compensation.} Bd7 {[%emt 0:15:49]} ({Better is} 10... Nd7) 11. e4 {[%emt 0:09:26]} c6 {[%emt 0:06:12]} 12. Qg3 {[%emt 0:05:35] Threatens to win with f3.} a5 {[%emt 0:01:36]} 13. Bc7 {[%emt 0:10:33]} Qc8 {[%emt 0:01:39][%cal Og4f2]} 14. Na4 $1 $36 {[%emt 0:00:34][%mdl 2048] White is in control.} Na6 {[%emt 0:02:20] [#]} 15. Be5 {[%emt 0:00:32]} Nxe5 {[%emt 0:07:27]} 16. Qxe5 {[%emt 0:00:06]} Rf8 {[%emt 0:02:51]} 17. Nb6 {[%emt 0:00:11]} Qb8 {[%emt 0:04:38]} 18. exd5 {[%emt 0:06:04] White is much more active.} Qxe5 {[%emt 0:02:35]} 19. dxe5 {[%emt 0:00:07] Black must now prevent dxc6.} exd5 {[%emt 0:01:05]} 20. Nxa8 $18 {[%emt 0:00:19] A dynamic duo of knights.} Bc5 {[%emt 0:00:06] [#] Dodges Nb6} 21. Nc3 {[%emt 0:01:45]} (21. Bh3 $1 $18) 21... Ke7 $16 {[%emt 0:02:15] [#]} 22. Bxd5 $1 {[%emt 0:04:07][%cal Oe5e6] And now e6! would win.} Rxa8 {[%emt 0:00:06] [#]} 23. Bxf7 {[%emt 0:04:55][%mdl 512] e6 is the strong threat.} Bg4 {[%emt 0:00:18][%cal Og4d1]} 24. Bxg6 {[%emt 0:00:06]} Bxd1 {[%emt 0:00:14]} (24... Rg8 $16 {might work better.} 25. Bd3 Bxd1 26. Nxd1 Nb4) 25. Nxd1 $18 {[%emt 0:00:06]} ({Resist} 25. Rxd1 Bxf2 26. Ne4 (26. Bxh5 Nc5 $11) 26... Bxh4 $16) 25... Rf8 {[%emt 0:02:13]} 26. Bxh5 {[%emt 0:03:02]} Ke6 {[%emt 0:00:29]} 27. Bg6 {[%emt 0:01:59]} Nb4 {[%emt 0:03:41]} 28. h5 {[%emt 0:00:58][%cal Bh4h5,Bh5h6][%mdl 32]} Kxe5 {[%emt 0:00:57]} 29. h6 {[%emt 0:00:17]} Kf6 {[%emt 0:01:16]} 30. h7 {[%emt 0:00:52]} Rh8 {[%emt 0:00:08]} (30... Kg7 {was worth a try.} 31. Ne3 Nxa2+ 32. Kb1 Nb4 33. Nf5+ Kxg6) 31. Be4 {[%emt 0:01:31]} Nxa2+ {[%emt 0:00:05]} 32. Kd2 {[%emt 0:01:17]} Nb4 {[%emt 0:00:02]} 33. Ne3 {[%emt 0:00:37] Prevents Nd5.} Na6 {[%emt 0:03:00]} (33... Rd8+ {keeps fighting.} 34. Ke2 Bxe3) 34. Rg1 {[%emt 0:01:51] White is clearly winning.} Kf7 {[%emt 0:00:12]} 35. Ng4 {[%emt 0:00:52]} Bd4 {[%emt 0:01:38]} (35... Bf8 $142 36. f4 (36. Ne5+ Kf6 $18) 36... Bg7 37. Ne5+ Bxe5) 36. Nh6+ {[%emt 0:00:11]} Ke6 {[%emt 0:00:12]} 37. c3 {[%emt 0:06:45]} Be5 {[%emt 0:00:18]} 38. Rg8 {[%emt 0:01:03]} Nc5 {[%emt 0:00:51]} 39. Bf5+ {[%emt 0:00:06]} Ke7 {[%emt 0:00:11]} 40. Ng4 {[%emt 0:00:19] Weighted Error Value: White=0.08 (flawless) /Black=0.31.  Mistake:       	White=1     	Black=7      Inaccurate:     	White=1     	---        OK:         	White=17    	Black=13     Best:        	White=1     	Black=3      Strong:       	White=1     	---} 1-0

[Event "Belt and Road Women 2024"]
[Site "Yuecheng Shaoxing"]
[Date "2024.08.02"]
[Round "9.2"]
[White "Badelka, Olga"]
[Black "Wagner, Dinara"]
[Result "1/2-1/2"]
[ECO "E54"]
[WhiteElo "2389"]
[BlackElo "2454"]
[Annotator "RC"]
[PlyCount "43"]
[EventDate "2024.08.01"]
[EventType "swiss"]
[EventCountry "CHN"]
[SourceTitle "playchess.com"]
[Source "ChessBase"]
[SourceQuality "1"]
[TimeControl "5400+30"]

1. d4 {[%emt 0:00:04]} Nf6 {[%emt 0:00:14]} 2. c4 {[%emt 0:00:09]} e6 {[%emt 0:00:07]} 3. Nc3 {[%emt 0:00:07]} Bb4 {[%emt 0:00:46]} 4. Nf3 {[%emt 0:00:10]} O-O {[%emt 0:05:16]} 5. e3 {[%emt 0:03:32]} d5 {[%emt 0:02:46]} 6. Bd3 {[%emt 0:00:43]} dxc4 {[%emt 0:00:25]} 7. Bxc4 {[%emt 0:00:05]} c5 {[%emt 0:00:01]} 8. O-O {[%emt 0:01:13]} cxd4 {[%emt 0:07:41]} 9. exd4 {[%emt 0:00:19]} b6 {[%emt 0:01:03]} 10. Bg5 {[%emt 0:00:11]} Bb7 {[%emt 0:00:08]} 11. Ne5 {[%emt 0:07:11]} Nbd7 {[%emt 0:19:03]} 12. Nxd7 {[%emt 0:12:58]} Qxd7 {[%emt 0:00:25]} 13. Bxf6 {[%emt 0:00:08]} gxf6 {[%emt 0:00:05]} 14. d5 {[%emt 0:00:40]} Bxc3 {[%emt 0:02:50]} 15. bxc3 {[%emt 0:00:28]} Bxd5 {[%emt 0:01:08]} 16. Qg4+ {[%emt 0:00:07]} Kh8 {[%emt 0:00:08]} 17. Qh4 {[%emt 0:00:07]} Bxc4 {[%emt 0:05:21]} 18. Qxf6+ {[%emt 0:00:07]} Kg8 {[%emt 0:00:03]} 19. Qg5+ {[%emt 0:00:05]} Kh8 {[%emt 0:00:03]} 20. Qf6+ {[%emt 0:00:04]} Kg8 {[%emt 0:00:03]} 21. Qg5+ {[%emt 0:00:05]} Kh8 {[%emt 0:00:02]} 22. Qf6+ {[%emt 0:00:41]} 1/2-1/2

[Event "Belt and Road Women 2024"]
[Site "Yuecheng Shaoxing"]
[Date "2024.08.02"]
[Round "9.3"]
[White "Zhai, Mo"]
[Black "Garifullina, Leya"]
[Result "1/2-1/2"]
[ECO "D38"]
[WhiteElo "2348"]
[BlackElo "2458"]
[Annotator "RC"]
[PlyCount "51"]
[EventDate "2024.08.01"]
[EventType "swiss"]
[EventCountry "CHN"]
[SourceTitle "playchess.com"]
[Source "ChessBase"]
[SourceQuality "1"]
[TimeControl "5400+30"]

1. d4 {[%emt 0:00:11]} Nf6 {[%emt 0:00:29]} 2. c4 {[%emt 0:00:08]} e6 {[%emt 0:00:05]} 3. Nf3 {[%emt 0:00:11]} d5 {[%emt 0:00:06]} 4. Nc3 {[%emt 0:00:10]} Bb4 {[%emt 0:00:05]} 5. Qa4+ {[%emt 0:00:49]} Nc6 {[%emt 0:00:06]} 6. e3 {[%emt 0:00:13]} O-O {[%emt 0:00:07]} 7. Qc2 {[%emt 0:00:30]} Re8 {[%emt 0:00:06]} 8. Bd2 {[%emt 0:00:30]} Bf8 {[%emt 0:00:07]} 9. a3 {[%emt 0:00:26]} e5 {[%emt 0:00:30]} 10. dxe5 {[%emt 0:00:25]} Nxe5 {[%emt 0:00:06]} 11. cxd5 {[%emt 0:00:12]} Nxf3+ {[%emt 0:00:21]} 12. gxf3 {[%emt 0:00:02]} Nxd5 {[%emt 0:00:08]} 13. Bd3 {[%emt 0:01:16]} Nxc3 {[%emt 0:01:37]} 14. Bxc3 {[%emt 0:00:41]} Qh4 {[%emt 0:00:06]} 15. O-O-O {[%emt 0:00:46]} Be6 {[%emt 0:08:14]} 16. f4 {[%emt 0:01:26]} Rad8 {[%emt 0:04:07]} 17. Rhg1 {[%emt 0:03:49]} f6 {[%emt 0:02:12]} 18. Rg3 {[%emt 0:07:56]} Kh8 {[%emt 0:02:39]} 19. f5 {[%emt 0:03:50]} Bf7 {[%emt 0:04:01]} 20. f4 {[%emt 0:08:45]} Rd6 {[%emt 0:09:03]} 21. Rdg1 {[%emt 0:14:46]} Red8 {[%emt 0:12:31]} 22. Be2 {[%emt 0:01:22]} Qxh2 {[%emt 0:02:45]} 23. R3g2 {[%emt 0:19:36]} Qh3 {[%emt 0:00:16]} 24. Rg3 {[%emt 0:00:18]} Qh2 {[%emt 0:00:05]} 25. R3g2 {[%emt 0:09:54]} Qh3 {[%emt 0:00:10]} 26. Rg3 {[%emt 0:00:17]} 1/2-1/2